{"text_format":"1","workbook":"xlsx","n_sheets":7,"sheets":["曲目入力","曲目（例）","司会資料入力","司会（例）","曲目印刷","司会印刷","事務局用"],"not_rendered":{"charts":0,"images":0,"macros":1,"external_links":0,"defined_names":3,"comments":4,"pivot_tables":0},"unopened":[],"bounds":{"document_bytes":16777216,"sheet_cells":100000,"rows_first":2000,"rows_last":500,"rows_between":2000,"halvings":0,"cell_chars":16384,"cell_head_chars":4096},"cells_cut":0,"cells_raw":0,"read":"whole","date_system":"1900"}

{"sheet":"曲目入力","index":0,"n_rows":36,"n_cols":11,"rows_kept":36,"cut":false,"hidden":false,"merged":[[25,4,25,6],[26,4,26,6],[27,4,27,6],[28,4,28,6],[29,4,29,6],[30,4,30,6],[21,1,22,1],[25,1,25,2],[26,1,26,2],[15,3,15,4],[16,3,16,4],[17,3,17,4],[18,3,18,4],[19,3,19,4],[15,1,16,1],[17,1,18,1],[19,1,20,1],[27,1,27,2],[28,1,28,2],[29,1,29,2],[30,1,30,2],[33,0,33,9],[10,1,10,4],[11,1,11,4],[12,1,12,4],[13,1,13,4],[20,3,20,4],[21,3,21,4],[22,3,22,4],[15,0,22,0],[5,1,5,3],[3,6,3,8],[24,2,24,5],[9,0,9,4],[0,0,0,6],[14,1,14,4],[2,1,2,5],[3,1,3,5],[7,0,7,2],[7,3,7,5]]}
["The World of Brass  演奏・演技発表会 演奏曲目申込書  入力フォーム",null,null,null,null,null,null,null,null,null,"する"]
[null,null,null,null,null,null,null,null,null,null,"しない"]
["フリガ ナ"]
["団体（学校）名",null,null,null,null,null,null,null,null,null,"指揮者"]
[null,null,null,null,null,null,null,null,null,null,"ドラムメジャー"]
["記入責任者名",null,null,null,null,null,null,null,null,null,"サブドラムメジャー"]
[]
["演技タイトル（ある場合）"]
[]
["演奏曲（12分以内）日本語で記入してください。",null,null,null,null,"形態（座奏、立奏など）"]
[1]
[2,null,null,null,null,null,null,null,null,null,"ティンパニー"]
[3,null,null,null,null,null,null,null,null,null,"チャイム"]
[4,null,null,null,null,null,null,null,null,null,"バスドラム（シンフォニック用）"]
[5,null,null,null,null,null,null,null,null,null,"マリンバ"]
["指揮者等\nﾄﾞﾛｯﾌﾟﾀﾞｳﾝﾘｽﾄより選択",null,"ﾌﾘｶﾞﾅ",null,null,"学年等",null,null,null,null,"ヴィブラフォン"]
[null,null,"氏名",null,null,null,null,null,null,null,"シロフォン"]
[null,null,"ﾌﾘｶﾞﾅ",null,null,"学年等",null,null,null,null,"グロッケン"]
[null,null,"氏名",null,null,null,null,null,null,null,"ドラ"]
[null,null,"ﾌﾘｶﾞﾅ",null,null,"学年等",null,null,null,null,"ドラムセット"]
[null,null,"氏名"]
[null,null,"ﾌﾘｶﾞﾅ",null,null,"学年等",null,null,null,null,"座奏"]
[null,null,"氏名",null,null,null,null,null,null,null,"立奏"]
["借用希望楽器（左側に〇を記入）",null,null,null,null,null,null,null,null,null,"ステージドリル（１５ｍ四方以内）"]
["楽器を借用",null,null,null,null,null,null,null,null,null,"フルドリル（公式サイズ）"]
[null,"ティンパニ23㌅",null,null,"マリンバ(マーチングフィールド用)4.5oct."]
[null,"ティンパニ26㌅",null,null,"ヴィブラフォン(マーチングフィールド用)3.5oct."]
[null,"ティンパニ29㌅",null,null,"シロフォン(マーチングフィールド用)3.5oct.",null,null,null,null,null,"1年"]
[null,"ティンパニ32㌅",null,null,"グロッケン(卓上タイプ・スタンド有)",null,null,null,null,null,"2年"]
[null,"チャイム",null,null,"ドラムセット(シンバルはハイハット、ライド、クラッシュ)",null,null,null,null,null,"3年"]
[null,"バスドラム",null,null,"ゴング",null,null,null,null,null,"4年"]
[null,null,null,null,null,null,null,null,null,null,"5年"]
["※入力が完了したら…",null,null,null,null,null,null,null,null,null,"6年"]
["このエクセルファイルを茨城県吹奏楽連盟事務局にe-mail(ken-jimu@iba-sui.jp)添付で送ってください。\nその際、ファイル名を「WOB参加申込【  団 体 名  】」としてください。",null,null,null,null,null,null,null,null,null,"〇"]
[]
["令和７年４月16日（水）必着です。期日厳守でお願いします。"]

{"sheet":"曲目（例）","index":1,"n_rows":36,"n_cols":11,"rows_kept":36,"cut":false,"hidden":false,"merged":[[29,1,29,2],[29,4,29,5],[30,1,30,2],[30,4,30,5],[33,0,33,9],[26,1,26,2],[26,4,26,5],[27,1,27,2],[27,4,27,5],[28,1,28,2],[28,4,28,5],[21,1,22,1],[21,3,21,4],[22,3,22,4],[24,2,24,5],[25,1,25,2],[25,4,25,5],[15,0,22,0],[15,1,16,1],[15,3,15,4],[16,3,16,4],[17,1,18,1],[17,3,17,4],[18,3,18,4],[19,1,20,1],[19,3,19,4],[20,3,20,4],[9,0,9,4],[10,1,10,4],[11,1,11,4],[12,1,12,4],[13,1,13,4],[14,1,14,4],[0,0,0,6],[2,1,2,5],[3,1,3,5],[5,1,5,3],[7,0,7,2],[7,3,7,5]]}
["The World of Brass  演奏・演技発表会 演奏曲目申込書  入力フォーム",null,null,null,null,null,null,null,null,null,"する"]
[null,null,null,null,null,null,null,null,null,null,"しない"]
["フリガナ","イバラキケンリツスイレンコウトウガッコウ"]
["団体（学校）名","茨城県立吹連高等学校",null,null,null,null,null,null,null,null,"指揮者"]
[null,null,null,null,null,null,null,null,null,null,"ドラムメジャー"]
["記入責任者名","吹連　太郎",null,null,null,null,null,null,null,null,"サブドラムメジャー"]
[]
["演技タイトル（ある場合）"]
[]
["演奏曲（12分以内）日本語で記入してください。",null,null,null,null,"形態（座奏，立奏など）"]
[1,"マーチ「後甲板にて」",null,null,null,"立奏"]
[2,"水戸黄門のテーマ",null,null,null,"フルドリル（公式サイズ）",null,null,null,null,"ティンパニー"]
[3,"ミスターインクレディブル",null,null,null,"ステージドリル（１５ｍ四方以内）",null,null,null,null,"チャイム"]
[4,"ファンタズミックⅡ",null,null,null,"ステージドリル（１５ｍ四方以内）",null,null,null,null,"バスドラム（シンフォニック用）"]
[5,"ジュピター",null,null,null,"ステージドリル（１５ｍ四方以内）",null,null,null,null,"マリンバ"]
["指揮者等\nﾄﾞﾛｯﾌﾟﾀﾞｳﾝﾘｽﾄより選択","指揮者","ﾌﾘｶﾞﾅ","スイレン　ジロウ",null,"学年等",null,null,null,null,"ヴィブラフォン"]
[null,null,"氏名","吹連　次朗",null,"教員等",null,null,null,null,"シロフォン"]
[null,"指揮者","ﾌﾘｶﾞﾅ","スイレン　ハナコ",null,"学年等",null,null,null,null,"グロッケン"]
[null,null,"氏名","吹連　花子",null,"教員等",null,null,null,null,"ドラ"]
[null,"ドラムメジャー","ﾌﾘｶﾞﾅ","スイレン　レンタ",null,"学年等",null,null,null,null,"ドラムセット"]
[null,null,"氏名","吹連　連太",null,"3年"]
[null,null,"ﾌﾘｶﾞﾅ",null,null,"学年等",null,null,null,null,"座奏"]
[null,null,"氏名",null,null,null,null,null,null,null,"立奏"]
["借用希望楽器（左側に〇を記入）",null,null,null,null,null,null,null,null,null,"ステージドリル（１５ｍ四方以内）"]
["楽器を借用","する",null,null,null,null,null,null,null,null,"フルドリル（公式サイズ）"]
[null,"ティンパニ23㌅",null,"〇","マリンバ(マーチングフィールド用)4.5oct."]
[null,"ティンパニ26㌅",null,"〇","ヴィブラフォン(マーチングフィールド用)3.5oct."]
["〇","ティンパニ29㌅",null,"〇","シロフォン(マーチングフィールド用)3.5oct.",null,null,null,null,null,"1年"]
["〇","ティンパニ32㌅",null,null,"グロッケン(卓上タイプ・スタンド有)",null,null,null,null,null,"2年"]
[null,"チャイム",null,"〇","ドラムセット(シンバルはハイハット、ライド、クラッシュ)",null,null,null,null,null,"3年"]
[null,"バスドラム",null,null,"ゴング",null,null,null,null,null,"教員等"]
[]
["※入力が完了したら…",null,null,null,null,null,null,null,null,null,"6年"]
["このエクセルファイルを茨城県吹奏楽連盟事務局にe-mail(ken-jimu@iba-sui.jp)添付で送ってください。\nその際，ファイル名を「WOB参加申込【  団 体 名  】」としてください。",null,null,null,null,null,null,null,null,null,"〇"]
[]
["令和７年４月16日（水）必着です。期日厳守でお願いします。"]

{"sheet":"司会資料入力","index":2,"n_rows":22,"n_cols":11,"rows_kept":22,"cut":false,"hidden":false,"merged":[[8,0,9,0],[8,2,9,2],[13,0,13,6],[16,0,16,6],[9,3,9,6],[11,0,11,1],[12,0,12,4],[3,0,4,0],[3,2,3,5],[13,7,13,12],[19,0,19,11],[4,1,4,5],[5,1,5,2],[7,2,7,4],[6,2,6,4],[8,4,8,6],[6,0,7,0]]}
["The World of Brass  司会者用資料       入力フォーム"]
[]
["所属県名",null,null,null,null,null,null,null,null,null,"神奈川県"]
["団体名","ﾌﾘｶﾞﾅ",{"$f":"曲目入力!B3","v":0},null,null,null,null,null,null,null,"千葉県"]
[null,{"$f":"曲目入力!B4","v":0},null,null,null,null,null,null,null,null,"栃木県"]
["記入責任者名",{"$f":"曲目入力!B6","v":0},null,null,null,null,null,null,null,null,"茨城県"]
["顧問","ﾌﾘｶﾞﾅ"]
[null,"氏名",null,null,null,null,null,null,null,null,"1年"]
["部長\n（生徒）","学年","氏名","ﾌﾘｶﾞﾅ",null,null,null,null,null,null,"2年"]
[null,null,null,null,null,null,null,null,null,null,"3年"]
[null,null,null,null,null,null,null,null,null,null,"4年"]
["部員数または参加人数",null,null,"名",null,null,null,null,null,null,"5年"]
["普段の活動について（モットーや活動内容など）",null,null,null,null,null,null,null,null,null,"6年"]
[]
[]
["今後の活動予定について（PRなど）"]
[]
[]
["※入力が完了したら…",null,null,null,null,null,null,null,null,null,"〇"]
["このエクセルファイルを茨城県吹奏楽連盟事務局にe-mail(ken-jimu@iba-sui.jp)添付で送ってください。\nその際，ファイル名を「WOB参加申込【  団 体 名  】」としてください。"]
[]
["令和７年４月16日（水）必着です。期日厳守でお願いします。"]

{"sheet":"司会（例）","index":3,"n_rows":22,"n_cols":11,"rows_kept":22,"cut":false,"hidden":false,"merged":[[13,0,13,6],[13,7,13,12],[16,0,16,6],[19,0,19,11],[8,0,9,0],[8,2,9,2],[8,4,8,6],[9,3,9,6],[11,0,11,1],[12,0,12,4],[3,0,4,0],[3,2,3,5],[4,1,4,5],[5,1,5,2],[6,0,7,0],[6,2,6,4],[7,2,7,4]]}
["The World of Brass  司会者用資料       入力フォーム"]
[]
["所属県名","茨城県",null,null,null,null,null,null,null,null,"神奈川県"]
["団体名","ﾌﾘｶﾞﾅ","イバラキケンリツスイレンコウトウガッコウ",null,null,null,null,null,null,null,"千葉県"]
[null,"茨城県立吹連高等学校",null,null,null,null,null,null,null,null,"栃木県"]
["記入責任者名","吹連　太郎",null,null,null,null,null,null,null,null,"茨城県"]
["顧問","ﾌﾘｶﾞﾅ","スイレン　ジロウ"]
[null,"氏名","吹連　次朗",null,null,null,null,null,null,null,"1年"]
["部長\n（生徒）","学年","氏名","ﾌﾘｶﾞﾅ","スイレン　ハナコ",null,null,null,null,null,"2年"]
[null,"3年",null,"吹連　花子",null,null,null,null,null,null,"3年"]
[]
["部員数または参加人数",null,88,"名"]
["普段の活動について（モットーや活動内容など）"]
["私たちは、コンテストで優秀な成績をおさめることよりも地域に愛されるバンドを目指し、日々練習をしています。\n"]
[]
["今後の活動予定について（PRなど）"]
["平成29年12月25日（日）大洗文化センターで定期演奏会を開催します。"]
[]
["※入力が完了したら…",null,null,null,null,null,null,null,null,null,"〇"]
["このエクセルファイルを茨城県吹奏楽連盟事務局にe-mail(ken-jimu@iba-sui.jp)添付で送ってください。\nその際，ファイル名を「WOB参加申込【  団 体 名  】」としてください。"]
[]
["令和７年４月16日（水）必着です。期日厳守でお願いします。"]

{"sheet":"曲目印刷","index":4,"n_rows":33,"n_cols":21,"rows_kept":33,"cut":false,"hidden":false,"merged":[[17,1,18,3],[17,4,17,16],[7,0,7,2],[7,3,7,16],[0,0,0,22],[1,0,1,22],[2,0,2,22],[3,0,3,22],[4,0,4,22],[13,0,20,0],[19,4,19,16],[20,4,20,16],[8,2,8,16],[9,2,9,16],[9,17,9,22],[10,17,10,22],[11,17,11,22],[12,17,12,22],[17,17,18,22],[18,4,18,16],[13,17,14,22],[10,2,10,16],[11,2,11,16],[12,2,12,16],[5,0,6,1],[5,2,5,17],[6,2,6,17],[8,0,12,0],[7,17,7,22],[8,17,8,22],[5,20,6,22],[13,1,14,3],[15,1,16,3],[19,1,20,3],[15,17,16,22],[19,17,20,22],[14,4,14,16],[13,4,13,16],[15,4,15,16],[16,4,16,16],[29,2,29,6],[25,8,25,12],[26,8,26,12],[27,8,27,12],[28,8,28,12],[32,16,32,22],[24,2,24,6],[22,3,22,4],[22,0,22,2],[24,8,24,12],[29,8,29,12],[30,7,30,11],[25,2,25,6],[26,2,26,6],[27,2,27,6],[28,2,28,6]]}
["2023年度"]
["The World of Brass 2023 ｉｎ ひたちなか"]
["（東関東マーチング発表会）"]
["さわやかな風と一緒に吹き鳴らそう"]
["演奏・演技発表会  演奏曲目申込書"]
["団体名",null,{"$f":"曲目入力!B3","v":0},null,null,null,null,null,null,null,null,null,null,null,null,null,null,null,null,null,"出演順"]
[null,null,{"$f":"曲目入力!B4","v":0}]
["演技タイトル",null,null,{"$f":"曲目入力!D8","v":0},null,null,null,null,null,null,null,null,null,null,null,null,null,"形    態"]
["演奏曲目",1,{"$f":"曲目入力!B11","v":0},null,null,null,null,null,null,null,null,null,null,null,null,null,null,{"$f":"曲目入力!F11","v":0}]
[null,2,{"$f":"曲目入力!B12","v":0},null,null,null,null,null,null,null,null,null,null,null,null,null,null,{"$f":"曲目入力!F12","v":0}]
[null,3,{"$f":"曲目入力!B13","v":0},null,null,null,null,null,null,null,null,null,null,null,null,null,null,{"$f":"曲目入力!F13","v":0}]
[null,4,{"$f":"曲目入力!B14","v":0},null,null,null,null,null,null,null,null,null,null,null,null,null,null,{"$f":"曲目入力!F14","v":0}]
[null,5,{"$f":"曲目入力!B15","v":0},null,null,null,null,null,null,null,null,null,null,null,null,null,null,{"$f":"曲目入力!F15","v":0}]
["指揮者等",{"$f":"曲目入力!B16","v":0},null,null,{"$f":"曲目入力!D16","v":0},null,null,null,null,null,null,null,null,null,null,null,null,{"$f":"曲目入力!F17","v":0}]
[null,null,null,null,{"$f":"曲目入力!D17","v":0}]
[null,{"$f":"曲目入力!B18","v":0},null,null,{"$f":"曲目入力!D18","v":0},null,null,null,null,null,null,null,null,null,null,null,null,{"$f":"曲目入力!F19","v":0}]
[null,null,null,null,{"$f":"曲目入力!D19","v":0}]
[null,{"$f":"曲目入力!B20","v":0},null,null,{"$f":"曲目入力!D20","v":0},null,null,null,null,null,null,null,null,null,null,null,null,{"$f":"曲目入力!F21","v":0}]
[null,null,null,null,{"$f":"曲目入力!D21","v":0}]
[null,{"$f":"曲目入力!B22","v":0},null,null,{"$f":"曲目入力!D22","v":0},null,null,null,null,null,null,null,null,null,null,null,null,{"$f":"曲目入力!F23","v":0}]
[null,null,null,null,{"$f":"曲目入力!D23","v":0}]
[]
["楽器借用",null,null,{"$f":"曲目入力!B25","v":0}]
[]
[null,{"$f":"曲目入力!A26","v":0},{"$f":"曲目入力!B26","v":"ティンパニ23㌅"},null,null,null,null,{"$f":"曲目入力!D26","v":0},{"$f":"曲目入力!E26","v":"マリンバ(マーチングフィールド用)4.5oct."}]
[null,{"$f":"曲目入力!A27","v":0},{"$f":"曲目入力!B27","v":"ティンパニ26㌅"},{"$f":"曲目入力!C27","v":0},null,null,{"$f":"曲目入力!F27","v":0},{"$f":"曲目入力!D27","v":0},{"$f":"曲目入力!E27","v":"ヴィブラフォン(マーチングフィールド用)3.5oct."}]
[null,{"$f":"曲目入力!A28","v":0},{"$f":"曲目入力!B28","v":"ティンパニ29㌅"},{"$f":"曲目入力!C28","v":0},null,null,{"$f":"曲目入力!F28","v":0},{"$f":"曲目入力!D28","v":0},{"$f":"曲目入力!E28","v":"シロフォン(マーチングフィールド用)3.5oct."}]
[null,{"$f":"曲目入力!A29","v":0},{"$f":"曲目入力!B29","v":"ティンパニ32㌅"},{"$f":"曲目入力!C29","v":0},null,null,{"$f":"曲目入力!F29","v":0},{"$f":"曲目入力!D29","v":0},{"$f":"曲目入力!E29","v":"グロッケン(卓上タイプ・スタンド有)"}]
[null,{"$f":"曲目入力!A30","v":0},{"$f":"曲目入力!B30","v":"チャイム"},{"$f":"曲目入力!C30","v":0},null,null,{"$f":"曲目入力!F30","v":0},{"$f":"曲目入力!D30","v":0},{"$f":"曲目入力!E30","v":"ドラムセット(シンバルはハイハット、ライド、クラッシュ)"}]
[null,{"$f":"曲目入力!A31","v":0},{"$f":"曲目入力!B31","v":"バスドラム"},{"$f":"曲目入力!C31","v":0},null,null,{"$f":"曲目入力!F31","v":0},{"$f":"曲目入力!D31","v":0},{"$f":"曲目入力!E31","v":"ゴング"}]
[]
[]
[null,null,null,null,null,null,null,null,null,null,null,null,null,null,null,"記入責任者",{"$f":"曲目入力!B6","v":0}]

{"sheet":"司会印刷","index":5,"n_rows":18,"n_cols":21,"rows_kept":18,"cut":false,"hidden":false,"merged":[[6,20,8,21],[9,3,9,21],[10,3,10,21],[6,3,6,5],[0,0,0,21],[1,0,1,21],[2,0,2,21],[3,0,3,21],[4,0,4,21],[6,0,8,2],[9,0,10,2],[11,0,12,2],[13,0,13,2],[14,0,14,2],[7,3,7,19],[8,3,8,19],[15,0,15,2],[11,3,11,18],[12,3,12,18],[11,19,12,21],[17,15,17,21],[13,3,13,5],[14,3,14,21],[15,3,15,21]]}
["2023年度"]
["The World of Brass 2023 ｉｎ ひたちなか"]
["（東関東マーチング発表会）"]
["さわやかな風と一緒に吹き鳴らそう"]
["司 会 者 用 資 料"]
[]
["団 体 名",null,null,{"$f":"司会資料入力!B3","v":0},null,null,null,null,null,null,null,null,null,null,null,null,null,null,null,null,"出演順"]
[null,null,null,{"$f":"司会資料入力!C4","v":0}]
[null,null,null,{"$f":"司会資料入力!B5","v":0}]
["顧 問 名",null,null,{"$f":"司会資料入力!C7","v":0}]
[null,null,null,{"$f":"司会資料入力!C8","v":0}]
["部 長 名",null,null,{"$f":"司会資料入力!E9","v":0},null,null,null,null,null,null,null,null,null,null,null,null,null,null,null,{"$f":"司会資料入力!B10","v":0}]
[null,null,null,{"$f":"司会資料入力!D10","v":0}]
["部 員 数",null,null,{"$f":"司会資料入力!C12","v":0}]
["普段の活動の様子",null,null,{"$f":"司会資料入力!A14","v":0}]
["今後の\n活動予定",null,null,{"$f":"司会資料入力!A17","v":0}]
[]
[null,null,null,null,null,null,null,null,null,null,null,null,null,null,"記入責任者",{"$f":"司会資料入力!B6","v":0}]

{"sheet":"事務局用","index":6,"n_rows":23,"n_cols":5,"rows_kept":23,"cut":false,"hidden":false,"merged":[[5,0,9,0]]}
[{"$f":"曲目入力!B4","v":0},null,null,{"$f":"司会資料入力!$C$12","v":0},"名"]
[{"$f":"曲目入力!B16","v":0},{"$f":"曲目入力!D17","v":0}]
[{"$f":"曲目入力!B18","v":0},{"$f":"曲目入力!D19","v":0}]
[{"$f":"曲目入力!B20","v":0},{"$f":"曲目入力!D21","v":0}]
[{"$f":"曲目入力!B22","v":0},{"$f":"曲目入力!D23","v":0}]
["曲目",{"$f":"曲目入力!B11","v":0},{"$f":"曲目入力!F11","v":0}]
[null,{"$f":"曲目入力!B12","v":0},{"$f":"曲目入力!F12","v":0}]
[null,{"$f":"曲目入力!B13","v":0},{"$f":"曲目入力!F13","v":0}]
[null,{"$f":"曲目入力!B14","v":0},{"$f":"曲目入力!F14","v":0}]
[null,{"$f":"曲目入力!B15","v":0},{"$f":"曲目入力!F15","v":0}]
["楽器借用",{"$f":"曲目入力!$B$25","v":0}]
[{"$f":"曲目入力!A26","v":0},"ティンパニ23"]
[{"$f":"曲目入力!A27","v":0},"ティンパニ26"]
[{"$f":"曲目入力!A28","v":0},"ティンパニ29"]
[{"$f":"曲目入力!A29","v":0},"ティンパニ32"]
[{"$f":"曲目入力!A30","v":0},"チャイム"]
[{"$f":"曲目入力!A31","v":0},"バスドラム"]
[{"$f":"曲目入力!D26","v":0},"マリンバ"]
[{"$f":"曲目入力!D27","v":0},"ヴィブラフォン"]
[{"$f":"曲目入力!D28","v":0},"シロフォン"]
[{"$f":"曲目入力!D29","v":0},"グロッケン"]
[{"$f":"曲目入力!D30","v":0},"ドラムセット"]
[{"$f":"曲目入力!D31","v":0},"ドラ"]